fUST/lending_fUST_20250724
["ID","MTS","AMOUNT","RATE_DAILY","PERIOD"]
[374605470,1753372244265,-460.0,0.00019505,2]
[374605471,1753372244275,-460.0,0.00019505,2]
[374605472,1753372244285,-460.0,0.00019505,2]
[374605473,1753372244295,-460.0,0.00019505,2]
[374605474,1753372244305,-460.0,0.00019509,2]
[374605475,1753372244314,-460.0,0.00019509,2]
[374605476,1753372244323,-327.1861059,0.00019512,2]
[374605477,1753372244333,-460.0,0.00019512,2]
[374605478,1753372244343,-460.0,0.00019512,2]
[374605479,1753372244353,-460.0,0.00019512,2]
[374605480,1753372244364,-494.30647834,0.00019512,2]
[374605481,1753372244373,-319.95244849,0.00019573,2]
[374605482,1753372244383,-500.0,0.00019573,2]
[374605483,1753372244392,-500.0,0.00019673,2]
[374605484,1753372244402,-460.0,0.00019677,2]
[374605485,1753372244411,-260.24646029,0.00019677,2]
[374605486,1753372244420,-460.0,0.00019678,2]
[374605487,1753372244429,-460.0,0.00019678,2]
[374605488,1753372244439,-460.0,0.00019678,2]
[374605489,1753372244448,-460.0,0.00019678,2]
[374605490,1753372244458,-460.0,0.00019678,2]
[374605491,1753372244468,-460.0,0.00019678,2]
[374605492,1753372244477,-460.0,0.00019678,2]
[374605493,1753372244490,-460.0,0.00019678,2]
[374605494,1753372244499,-460.0,0.00019678,2]
[374605495,1753372244509,-893.98,0.00019678,2]
[374605496,1753372244519,-460.0,0.00019678,2]
[374605497,1753372244528,-460.0,0.00019678,2]
[374605498,1753372244538,-460.0,0.00019678,2]
[374605499,1753372244548,-670.94,0.00019678,2]
[374605500,1753372244558,-460.0,0.00019678,2]
[374605501,1753372244568,-460.0,0.00019678,2]
[374605502,1753372244578,-460.0,0.00019678,2]
[374605503,1753372244588,-460.0,0.00019678,2]
[374605504,1753372244598,-661.8,0.00019678,2]
[374605505,1753372244607,-460.0,0.0001968,2]
[374605506,1753372244619,-460.0,0.0001968,2]
[374605507,1753372244628,-460.0,0.0001968,2]
[374605508,1753372244638,-460.0,0.0001968,2]
[374605509,1753372244648,-460.0,0.0001968,2]
[374605510,1753372244657,-460.0,0.0001968,2]
[374605511,1753372244667,-460.0,0.0001968,2]
[374605512,1753372244678,-460.0,0.0001968,2]
[374605513,1753372244688,-460.0,0.0001968,2]
[374605514,1753372244697,-460.0,0.0001968,2]
[374605515,1753372244707,-460.0,0.0001968,2]
[374605516,1753372244716,-460.0,0.0001968,2]
[374605517,1753372244726,-460.0,0.0001968,2]
[374605518,1753372244735,-460.0,0.0001968,2]
[374605519,1753372244745,-1525.88,0.0001968,2]
[374605520,1753372244755,-460.0,0.0001968,2]
[374605521,1753372244764,-460.0,0.0001968,2]
[374605522,1753372244774,-460.0,0.0001968,2]
[374605523,1753372244784,-460.0,0.0001968,2]
[374605524,1753372244794,-460.0,0.0001968,2]
[374605525,1753372244804,-415.74493917,0.0001968,2]
[374605526,1753372244813,-460.0,0.0001968,2]
[374605527,1753372244823,-460.0,0.0001968,2]
[374605528,1753372244833,-460.0,0.0001968,2]
[374605529,1753372244842,-460.0,0.0001968,2]
[374605530,1753372244854,-608.11,0.0001968,2]
[374605531,1753372244866,-460.0,0.0001968,2]
[374605532,1753372244990,-460.0,0.00019681,2]
[374605533,1753372245002,-460.0,0.00019681,2]
[374605534,1753372245016,-460.0,0.00019681,2]
[374605535,1753372245028,-467.94216789,0.00019681,2]
[374605537,1753372245038,-360.55199838,0.00019681,2]
[374605538,1753372245047,-460.0,0.00019681,2]
[374605541,1753372245058,-460.0,0.00019681,2]
[374605542,1753372245068,-460.0,0.00019681,2]
[374605544,1753372245077,-460.0,0.00019681,2]
[374605545,1753372245087,-460.0,0.00019681,2]
[374605547,1753372245097,-460.0,0.00019681,2]
[374605548,1753372245107,-460.0,0.00019681,2]
[374605549,1753372245119,-460.0,0.00019681,2]
[374605550,1753372245128,-460.0,0.00019681,2]
[374605551,1753372245138,-460.0,0.00019681,2]
[374605552,1753372245148,-460.0,0.00019681,2]
[374605553,1753372245157,-460.0,0.00019681,2]
[374605554,1753372245167,-460.0,0.00019681,2]
[374605555,1753372245176,-152.19956818,0.00019681,2]
[374605556,1753372245186,-460.0,0.00019681,2]
[374605557,1753372245195,-460.0,0.00019681,2]
[374605558,1753372245206,-685.94,0.00019681,2]
[374605559,1753372245219,-460.0,0.00019681,2]
[374605560,1753372245230,-460.0,0.00019681,2]
[374605561,1753372245240,-460.0,0.00019681,2]
[374605563,1753372245250,-460.0,0.00019681,2]
[374605564,1753372245260,-460.0,0.00019681,2]
[374605565,1753372245270,-460.0,0.00019681,2]
[374605566,1753372245280,-460.0,0.00019681,2]
[374605567,1753372245291,-460.0,0.00019681,2]
[374605568,1753372245302,-460.0,0.00019681,2]
[374605569,1753372245311,-460.0,0.00019681,2]
[374605570,1753372245321,-460.0,0.00019681,2]
[374605571,1753372245330,-460.0,0.00019681,2]
[374605572,1753372245340,-460.0,0.00019681,2]
[374605573,1753372245351,-460.0,0.00019682,2]
[374605574,1753372245360,-460.0,0.00019779,2]
[374605575,1753372245370,-460.0,0.00019779,2]
[374605576,1753372245380,-158.61582638,0.00019779,2]
[374605577,1753372245391,-460.0,0.00019779,2]
[374605579,1753372245402,-460.0,0.00019779,2]
[374605580,1753372245412,-1368.47,0.00019779,2]
[374605581,1753372245422,-460.0,0.00019779,2]
[374605582,1753372245433,-460.0,0.00019779,2]
[374605583,1753372245444,-460.0,0.00019779,2]
[374605584,1753372245455,-355.30195347,0.00019786,2]
[374605585,1753372245465,-460.0,0.00019786,2]
[374605586,1753372245474,-8422.56785152,0.00019791,2]
[374605587,1753372245485,-460.0,0.00019951,2]
[374605588,1753372245495,-460.0,0.00019952,2]
[374605589,1753372245504,-460.0,0.00019952,2]
[374605590,1753372245514,-893.98,0.00019952,2]
[374605591,1753372245524,-460.0,0.00019952,2]
[374605592,1753372245534,-670.94,0.00019952,2]
[374605593,1753372245545,-460.0,0.00019952,2]
[374605594,1753372245555,-460.0,0.00019952,2]
[374605595,1753372245566,-460.0,0.00019952,2]
[374605596,1753372245576,-661.8,0.00019952,2]
[374605597,1753372245585,-220.89090154,0.00019954,2]
[374605598,1753372245595,-460.0,0.00019954,2]
[374605599,1753372245605,-460.0,0.00019954,2]
[374605601,1753372245616,-460.0,0.00019954,2]
[374605602,1753372245625,-460.0,0.00019954,2]
[374605603,1753372245635,-460.0,0.00019954,2]
[374605604,1753372245644,-1525.88,0.00019954,2]
[374605606,1753372245653,-460.0,0.00019954,2]
[374605608,1753372245663,-460.0,0.00019954,2]
[374605609,1753372245672,-460.0,0.00019954,2]
[374605610,1753372245682,-460.0,0.00019954,2]
[374605611,1753372245692,-460.0,0.00019954,2]
[374605612,1753372245702,-395.03976621,0.00019954,2]
[374605613,1753372245711,-460.0,0.00019954,2]
[374605614,1753372245720,-460.0,0.00019954,2]
[374605615,1753372245730,-608.11,0.00019954,2]
[374605616,1753372245740,-460.0,0.00019955,2]
[374605617,1753372245750,-460.0,0.00019955,2]
[374605618,1753372245759,-460.0,0.00019955,2]
[374605619,1753372245769,-460.0,0.00019955,2]
[374605620,1753372245779,-321.96,0.00019955,2]
[374605621,1753372245788,-460.0,0.00019955,2]
[374605624,1753372245798,-460.0,0.00019955,2]
[374605626,1753372245808,-685.94,0.00019955,2]
[374605627,1753372245818,-460.0,0.00019955,2]
[374605628,1753372245827,-527.58225673,0.00019955,2]
[374605629,1753372245837,-460.0,0.00019955,2]
[374605630,1753372245847,-460.0,0.00019955,2]
[374605631,1753372245856,-340.0,0.00019955,2]
[374605632,1753372245868,-460.0,0.00019955,2]
[374605633,1753372245878,-460.0,0.00019955,2]
[374605634,1753372245888,-460.0,0.00019955,2]
[374605635,1753372245897,-460.0,0.00019955,2]
[374605636,1753372245907,-460.0,0.00019955,2]
[374605637,1753372245918,-460.0,0.00019955,2]
[374605638,1753372245927,-5027.69556085,0.0001999,2]
[374605640,1753372245938,-460.0,0.00020053,2]
[374605641,1753372245949,-460.0,0.00020053,2]
[374605642,1753372245959,-460.0,0.00020053,2]
[374605643,1753372245968,-1368.47,0.00020053,2]
[374605644,1753372245978,-500.0,0.00020074,2]
[374605645,1753372245988,-160.0,0.00020133,2]
[374605646,1753372245998,-329.0,0.0002016,2]
[374605647,1753372246007,-460.0,0.00020225,2]
[374605648,1753372246017,-460.0,0.00020226,2]
[374605649,1753372246026,-893.98,0.00020226,2]
[374605650,1753372246036,-460.0,0.00020226,2]
[374605651,1753372246046,-670.94,0.00020226,2]
[374605652,1753372246056,-460.0,0.00020226,2]
[374605653,1753372246066,-460.0,0.00020226,2]
[374605655,1753372246076,-460.0,0.00020226,2]
[374605656,1753372246085,-661.8,0.00020226,2]
[374605657,1753372246094,-460.0,0.00020228,2]
[374605658,1753372246105,-460.0,0.00020228,2]
[374605659,1753372246114,-460.0,0.00020228,2]
[374605660,1753372246124,-460.0,0.00020228,2]
[374605661,1753372246134,-460.0,0.00020228,2]
[374605662,1753372246143,-1525.88,0.00020228,2]
[374605663,1753372246152,-460.0,0.00020228,2]
[374605664,1753372246162,-460.0,0.00020228,2]
[374605665,1753372246171,-460.0,0.00020228,2]
[374605666,1753372246180,-460.0,0.00020228,2]
[374605667,1753372246190,-460.0,0.00020228,2]
[374605668,1753372246199,-460.0,0.00020228,2]
[374605669,1753372246208,-460.0,0.00020228,2]
[374605671,1753372246218,-608.11,0.00020228,2]
[374605673,1753372246227,-460.0,0.00020229,2]
[374605674,1753372246237,-460.0,0.00020229,2]
[374605675,1753372246247,-460.0,0.00020229,2]
[374605676,1753372246256,-460.0,0.00020229,2]
[374605678,1753372246267,-685.94,0.00020229,2]
[374605679,1753372246276,-460.0,0.00020229,2]
[374605681,1753372246286,-460.0,0.00020229,2]
[374605683,1753372246296,-460.0,0.00020229,2]
[374605684,1753372246306,-460.0,0.00020229,2]
[374605685,1753372246316,-460.0,0.00020229,2]
[374605686,1753372246326,-460.0,0.00020229,2]
[374605687,1753372246336,-460.0,0.00020229,2]
[374605688,1753372246347,-460.0,0.00020229,2]
[374605689,1753372246359,-460.0,0.00020229,2]
[374605690,1753372246371,-500.0,0.000203,2]
[374605691,1753372246381,-488.0514365,0.00020327,2]
[374605692,1753372246392,-460.0,0.00020327,2]
[374605693,1753372246402,-460.0,0.00020327,2]
[374605694,1753372246412,-1368.47,0.00020327,2]
[374605695,1753372246423,-390.0,0.00020335,2]
[374605696,1753372246432,-460.0,0.00020499,2]
[374605697,1753372246442,-460.0,0.000205,2]
[374605698,1753372246452,-893.98,0.000205,2]
[374605699,1753372246462,-460.0,0.000205,2]
[374605700,1753372246471,-670.94,0.000205,2]
[374605701,1753372246482,-460.0,0.000205,2]
[374605702,1753372246492,-460.0,0.000205,2]
[374605703,1753372246501,-661.8,0.000205,2]
[374605704,1753372246512,-460.0,0.00020502,2]
[374605705,1753372246523,-460.0,0.00020502,2]
[374605706,1753372246533,-460.0,0.00020502,2]
[374605707,1753372246542,-460.0,0.00020502,2]
[374605708,1753372246552,-460.0,0.00020502,2]
[374605709,1753372246562,-1525.88,0.00020502,2]
[374605710,1753372246571,-460.0,0.00020502,2]
[374605711,1753372246580,-460.0,0.00020502,2]
[374605712,1753372246590,-460.0,0.00020502,2]
[374605713,1753372246600,-460.0,0.00020502,2]
[374605714,1753372246609,-460.0,0.00020502,2]
[374605715,1753372246620,-460.0,0.00020502,2]
[374605716,1753372246629,-460.0,0.00020502,2]
[374605717,1753372246640,-608.11,0.00020502,2]
[374605718,1753372246649,-460.0,0.00020503,2]
[374605719,1753372246659,-228.64,0.00020503,2]
[374605720,1753372246669,-460.0,0.00020503,2]
[374605721,1753372246678,-460.0,0.00020503,2]
[374605722,1753372246688,-685.94,0.00020503,2]
[374605723,1753372246697,-460.0,0.00020503,2]
[374605724,1753372246707,-460.0,0.00020503,2]
[374605725,1753372246716,-460.0,0.00020503,2]
[374605726,1753372246727,-460.0,0.00020503,2]
[374605727,1753372246736,-460.0,0.00020503,2]
[374605728,1753372246746,-460.0,0.00020503,2]
[374605729,1753372246755,-460.0,0.00020503,2]
[374605730,1753372246764,-460.0,0.00020503,2]
[374605731,1753372246774,-460.0,0.00020503,2]
[374605732,1753372246783,-157.87454611,0.00020527,2]
[374605733,1753372246792,-421.24572044,0.0002054,2]
[374605734,1753372246802,-413.75957835,0.00020552,2]
[374605735,1753372246812,-460.0,0.00020601,2]
[374605736,1753372246821,-460.0,0.00020601,2]
[374605737,1753372246831,-1368.47,0.00020601,2]
[374605738,1753372246840,-260.0,0.00020681,2]
[374605739,1753372246850,-635.92945262,0.00020744,2]
[374605740,1753372246859,-1172.2760193,0.00020757,2]
[374605741,1753372246871,-933.7,0.00020764,3]
[374605742,1753372246881,-466.86,0.00020764,3]
[374605743,1753372246891,-1867.42,0.00020765,3]
[374605744,1753372246900,-500.0,0.00020773,2]
[374605745,1753372246910,-460.0,0.00020773,2]
[374605746,1753372246920,-460.0,0.00020774,2]
[374605747,1753372246930,-893.98,0.00020774,2]
[374605748,1753372246942,-460.0,0.00020774,2]
[374605749,1753372246952,-670.94,0.00020774,2]
[374605750,1753372246962,-460.0,0.00020774,2]
[374605751,1753372246972,-661.8,0.00020774,2]
[374605752,1753372246983,-460.0,0.00020776,2]
[374605753,1753372246993,-460.0,0.00020776,2]
[374605754,1753372247003,-460.0,0.00020776,2]
[374605755,1753372247014,-460.0,0.00020776,2]
[374605756,1753372247024,-460.0,0.00020776,2]
[374605757,1753372247034,-1525.88,0.00020776,2]
[374605758,1753372247044,-460.0,0.00020776,2]
[374605759,1753372247054,-460.0,0.00020776,2]
[374605760,1753372247064,-460.0,0.00020776,2]
[374605761,1753372247074,-460.0,0.00020776,2]
[374605762,1753372247084,-460.0,0.00020776,2]
[374605763,1753372247094,-460.0,0.00020776,2]
[374605764,1753372247105,-460.0,0.00020776,2]
[374605765,1753372247115,-608.11,0.00020776,2]
[374605766,1753372247125,-460.0,0.00020777,2]
[374605767,1753372247135,-175.71480877,0.00020777,2]
[374605768,1753372247145,-460.0,0.00020777,2]
[374605769,1753372247155,-685.94,0.00020777,2]
[374605770,1753372247166,-460.0,0.00020777,2]
[374605771,1753372247176,-460.0,0.00020777,2]
[374605772,1753372247185,-460.0,0.00020777,2]
[374605773,1753372247195,-368.50241835,0.00020777,2]
[374605774,1753372247205,-460.0,0.00020777,2]
[374605775,1753372247215,-460.0,0.00020777,2]
[374605776,1753372247224,-460.0,0.00020777,2]
[374605777,1753372247233,-460.0,0.00020777,2]
[374605778,1753372247243,-460.0,0.00020777,2]
[374605779,1753372247255,-1000.0,0.00020848,2]
[374605780,1753372247265,-460.0,0.00020875,2]
[374605781,1753372247275,-1368.47,0.00020875,2]
[374605782,1753372247284,-749.512,0.00020927,2]
[374605783,1753372247294,-160.0,0.00021,3]
[374605784,1753372247304,-460.0,0.00021047,2]
[374605785,1753372247313,-460.0,0.00021048,2]
[374605786,1753372247323,-893.98,0.00021048,2]
[374605787,1753372247332,-460.0,0.00021048,2]
[374605788,1753372247343,-670.94,0.00021048,2]
[374605789,1753372247354,-460.0,0.00021048,2]
[374605790,1753372247366,-661.8,0.00021048,2]
[374605791,1753372247376,-460.0,0.0002105,2]
[374605792,1753372247386,-460.0,0.0002105,2]
[374605793,1753372247395,-460.0,0.0002105,2]
[374605794,1753372247405,-460.0,0.0002105,2]
[374605795,1753372247414,-460.0,0.0002105,2]
[374605796,1753372247424,-1525.88,0.0002105,2]
[374605797,1753372247433,-460.0,0.0002105,2]
[374605798,1753372247443,-460.0,0.0002105,2]
[374605799,1753372247453,-460.0,0.0002105,2]
[374605800,1753372247462,-561.41,0.0002105,2]
[374605801,1753372247471,-460.0,0.0002105,2]
[374605802,1753372247481,-460.0,0.0002105,2]
[374605803,1753372247490,-460.0,0.0002105,2]
[374605804,1753372247500,-608.11,0.0002105,2]
[374605805,1753372247509,-460.0,0.00021051,2]
[374605806,1753372247518,-460.0,0.00021051,2]
[374605807,1753372247528,-685.94,0.00021051,2]
[374605808,1753372247539,-460.0,0.00021051,2]
[374605809,1753372247548,-460.0,0.00021051,2]
[374605810,1753372247558,-460.0,0.00021051,2]
[374605811,1753372247568,-460.0,0.00021051,2]
[374605812,1753372247579,-460.0,0.00021051,2]
[374605813,1753372247589,-460.0,0.00021051,2]
[374605814,1753372247599,-460.0,0.00021051,2]
[374605815,1753372247611,-297.0,0.0002114,2]
[374605816,1753372247625,-420.0,0.0002114,2]
[374605817,1753372247635,-420.0,0.0002114,2]
[374605818,1753372247647,-1488.0,0.00021142,2]
[374605819,1753372247659,-1368.47,0.00021149,2]
[374605820,1753372247678,-500.0,0.0002117,2]
[374605821,1753372247689,-440.0,0.00021229,2]
[374605822,1753372247700,-160.0,0.00021234,2]
[374605823,1753372247711,-840.23756827,0.00021234,2]
[374605824,1753372247720,-160.0,0.00021234,2]
[374605825,1753372247730,-215.88777038,0.00021234,2]
[374605826,1753372247739,-12624.810388,0.00021234,2]
[374605827,1753372247749,-160.0,0.00021234,2]
[374605828,1753372247758,-214.7213231,0.00021234,2]
[374605829,1753372247768,-476.79463412,0.00021239,2]
[374605830,1753372247778,-500.0,0.00021241,2]
[374605831,1753372247787,-1680.0,0.00021242,2]
[374605832,1753372247800,-500.0,0.00021275,2]
[374605833,1753372247810,-500.0,0.00021275,2]
[374605834,1753372247820,-500.0,0.00021275,2]
[374605835,1753372247831,-1000.0,0.00021321,2]
[374605836,1753372247841,-460.0,0.00021322,2]
[374605837,1753372247851,-893.98,0.00021322,2]
[374605838,1753372247861,-460.0,0.00021322,2]
[374605839,1753372247872,-670.94,0.00021322,2]
[374605840,1753372247882,-460.0,0.00021322,2]
[374605841,1753372247891,-661.8,0.00021322,2]
[374605842,1753372247903,-460.0,0.00021324,2]
[374605843,1753372247913,-460.0,0.00021324,2]
[374605844,1753372247924,-460.0,0.00021324,2]
[374605845,1753372247935,-460.0,0.00021324,2]
[374605846,1753372247955,-460.0,0.00021324,2]
[374605847,1753372247966,-1525.88,0.00021324,2]
[374605848,1753372247976,-460.0,0.00021324,2]
[374605849,1753372247986,-460.0,0.00021324,2]
[374605850,1753372247996,-460.0,0.00021324,2]
[374605851,1753372248006,-460.0,0.00021324,2]
[374605852,1753372248016,-460.0,0.00021324,2]
[374605853,1753372248026,-460.0,0.00021324,2]
[374605854,1753372248035,-608.11,0.00021324,2]
[374605855,1753372248045,-460.0,0.00021325,2]
[374605856,1753372248058,-460.0,0.00021325,2]
[374605857,1753372248069,-685.94,0.00021325,2]
[374605858,1753372248079,-460.0,0.00021325,2]
[374605859,1753372248088,-460.0,0.00021325,2]
[374605860,1753372248098,-460.0,0.00021325,2]
[374605861,1753372248108,-460.0,0.00021325,2]
[374605862,1753372248224,-460.0,0.00021325,2]
[374605863,1753372248234,-460.0,0.00021325,2]
[374605864,1753372248245,-460.0,0.00021325,2]
[374605865,1753372248255,-674.45347292,0.00021396,2]
[374605866,1753372248264,-1368.47,0.00021423,2]
[374605867,1753372248274,-460.0,0.00021596,2]
[374605868,1753372248284,-893.98,0.00021596,2]
[374605869,1753372248295,-460.0,0.00021596,2]
[374605870,1753372248305,-670.94,0.00021596,2]
[374605871,1753372248315,-460.0,0.00021596,2]
[374605872,1753372248324,-661.8,0.00021596,2]
[374605873,1753372248334,-460.0,0.00021598,2]
[374605874,1753372248344,-460.0,0.00021598,2]
[374605875,1753372248355,-460.0,0.00021598,2]
[374605876,1753372248366,-1525.88,0.00021598,2]
[374605877,1753372248375,-460.0,0.00021598,2]
[374605878,1753372248385,-460.0,0.00021598,2]
[374605879,1753372248395,-460.0,0.00021598,2]
[374605880,1753372248406,-460.0,0.00021598,2]
[374605881,1753372248416,-460.0,0.00021598,2]
[374605882,1753372248425,-460.0,0.00021598,2]
[374605883,1753372248435,-608.11,0.00021598,2]
[374605884,1753372248445,-460.0,0.00021599,2]
[374605885,1753372248454,-460.0,0.00021599,2]
[374605886,1753372248465,-685.94,0.00021599,2]
[374605887,1753372248475,-460.0,0.00021599,2]
[374605888,1753372248486,-460.0,0.00021599,2]
[374605889,1753372248495,-460.0,0.00021599,2]
[374605890,1753372248505,-460.0,0.00021599,2]
[374605891,1753372248515,-460.0,0.00021599,2]
[374605892,1753372248525,-460.0,0.00021599,2]
[374605893,1753372248535,-500.0,0.00021631,2]
[374605894,1753372248544,-576.27187642,0.00021631,2]
[374605895,1753372248554,-1368.47,0.00021697,2]
[374605896,1753372248564,-500.0,0.00021717,2]
[374605897,1753372248574,-157.87454611,0.0002175,2]
[374605898,1753372248583,-1000.0,0.00021823,2]
[374605899,1753372248593,-1000.0,0.00021823,2]
[374605900,1753372248603,-375.39190922,0.00021868,2]
[374605901,1753372248613,-460.0,0.0002187,2]
[374605902,1753372248623,-893.98,0.0002187,2]
[374605903,1753372248633,-460.0,0.0002187,2]
[374605904,1753372248642,-670.94,0.0002187,2]
[374605905,1753372248652,-460.0,0.0002187,2]
[374605906,1753372248662,-661.8,0.0002187,2]
[374605907,1753372248672,-460.0,0.00021872,2]
[374605908,1753372248682,-460.0,0.00021872,2]
[374605909,1753372248693,-460.0,0.00021872,2]
[374605910,1753372248702,-1525.88,0.00021872,2]
[374605911,1753372248711,-460.0,0.00021872,2]
[374605912,1753372248721,-460.0,0.00021872,2]
[374605913,1753372248731,-460.0,0.00021872,2]
[374605914,1753372248740,-460.0,0.00021872,2]
[374605915,1753372248750,-460.0,0.00021872,2]
[374605916,1753372248759,-460.0,0.00021872,2]
[374605917,1753372248769,-608.11,0.00021872,2]
[374605918,1753372248779,-460.0,0.00021873,2]
[374605919,1753372248790,-460.0,0.00021873,2]
[374605920,1753372248800,-685.94,0.00021873,2]
[374605921,1753372248810,-460.0,0.00021873,2]
[374605922,1753372248820,-460.0,0.00021873,2]
[374605923,1753372248829,-460.0,0.00021873,2]
[374605924,1753372248839,-460.0,0.00021873,2]
[374605925,1753372248848,-460.0,0.00021873,2]
[374605926,1753372248858,-460.0,0.00021873,2]
[374605927,1753372248870,-1368.47,0.00021971,2]
[374605928,1753372248879,-1597.75,0.00022,7]
[374605929,1753372248889,-1379.49,0.00022,7]
[374605930,1753372248899,-21453.86,0.00022,2]
[374605931,1753372248910,-166.67,0.00022,2]
[374605932,1753372248921,-1172.2760193,0.00022109,2]
[374605933,1753372248931,-460.0,0.00022144,2]
[374605934,1753372248945,-893.98,0.00022144,2]
[374605935,1753372248955,-460.0,0.00022144,2]
[374605936,1753372248965,-670.94,0.00022144,2]
[374605937,1753372248975,-460.0,0.00022144,2]
[374605938,1753372248986,-661.8,0.00022144,2]
[374605939,1753372248996,-460.0,0.00022146,2]
[374605940,1753372249006,-384.27,0.00022146,2]
[374605941,1753372249017,-1525.88,0.00022146,2]
[374605942,1753372249027,-478.82077693,0.00022146,2]
[374605943,1753372249037,-343.60728136,0.00022146,2]
[374605944,1753372249047,-460.0,0.00022146,2]
[374605945,1753372249056,-460.0,0.00022146,2]
[374605946,1753372249066,-460.0,0.00022146,2]
[374605947,1753372249076,-460.0,0.00022146,2]
[374605948,1753372249086,-608.11,0.00022146,2]
[374605949,1753372249096,-460.0,0.00022147,2]
[374605950,1753372249106,-460.0,0.00022147,2]
[374605951,1753372249117,-685.94,0.00022147,2]
[374605952,1753372249127,-460.0,0.00022147,2]
[374605953,1753372249137,-460.0,0.00022147,2]
[374605954,1753372249146,-460.0,0.00022147,2]
[374605955,1753372249156,-460.0,0.00022147,2]
[374605956,1753372249166,-460.0,0.00022147,2]
[374605957,1753372249175,-460.0,0.00022147,2]
[374605958,1753372249185,-1000.0,0.00022179,2]
[374605959,1753372249194,-1368.47,0.00022245,2]
[374605960,1753372249203,-500.0,0.00022266,2]
[374605961,1753372249213,-209.39504618,0.00022371,2]
[374605962,1753372249223,-1364.01047489,0.00022413,2]
[374605963,1753372249232,-460.0,0.00022418,2]
[374605964,1753372249242,-893.98,0.00022418,2]
[374605965,1753372249251,-460.0,0.00022418,2]
[374605966,1753372249260,-670.94,0.00022418,2]
[374605967,1753372249270,-460.0,0.00022418,2]
[374605968,1753372249279,-661.8,0.00022418,2]
[374605969,1753372249289,-460.0,0.0002242,2]
[374605970,1753372249298,-1525.88,0.0002242,2]
[374605971,1753372249308,-460.0,0.0002242,2]
[374605972,1753372249318,-460.0,0.0002242,2]
[374605973,1753372249328,-460.0,0.0002242,2]
[374605974,1753372249338,-608.11,0.0002242,2]
[374605975,1753372249347,-460.0,0.00022421,2]
[374605976,1753372249357,-685.94,0.00022421,2]
[374605977,1753372249372,-460.0,0.00022421,2]
[374605978,1753372249382,-460.0,0.00022421,2]
[374605979,1753372249391,-209.86013579,0.00022421,2]
[374605980,1753372249401,-326.14903517,0.00022421,2]
[374605981,1753372249411,-460.0,0.00022421,2]
[374605982,1753372249421,-1536.47,0.00022465,2]
[374605983,1753372249430,-215.0738,0.00022491,2]
[374605984,1753372249438,-151.0,0.00022491,2]
[374605985,1753372249447,-151.0,0.00022491,2]
[374605986,1753372249457,-151.0,0.00022491,2]
[374605987,1753372249466,-151.0,0.00022491,2]
[374605988,1753372249476,-151.0,0.00022491,2]
[374605989,1753372249485,-151.0,0.00022491,2]